fUST/lending_fUST_20250710
["ID","MTS","AMOUNT","RATE_DAILY","PERIOD"]
[370925604,1752162690238,-151.0,0.000204,2]
[370925605,1752162690248,-151.0,0.000204,2]
[370925606,1752162690259,-1082.0,0.0002041,2]
[370925607,1752162690268,-1082.0,0.00020438,2]
[370925608,1752162690278,-1099.99171824,0.00020465,2]
[370925609,1752162690288,-168.0,0.00020473,2]
[370925610,1752162690297,-2000.0,0.000205,2]
[370925611,1752162690307,-4308.0,0.000205,2]
[370925612,1752162690317,-2000.0,0.000205,2]
[370925613,1752162690327,-168.0,0.00020503,2]
[370925614,1752162690337,-539.52386784,0.00020521,2]
[370925615,1752162690348,-688.85272705,0.00020521,2]
[370925616,1752162690357,-1000.0,0.00020521,2]
[370925617,1752162690367,-500.0,0.00020521,2]
[370925618,1752162690377,-153.090927,0.00020521,2]
[370925619,1752162690389,-153.090927,0.00020521,2]
[370925620,1752162690400,-650.204,0.00020528,2]
[370925621,1752162690410,-460.0,0.00020547,2]
[370925622,1752162690419,-460.0,0.00020547,2]
[370925623,1752162690429,-151.0,0.00020547,2]
[370925624,1752162690439,-487.16,0.00020547,2]
[370925625,1752162690448,-375.292495,0.00020547,2]
[370925626,1752162690459,-375.292495,0.00020547,2]
[370925627,1752162690469,-770.11,0.00020547,2]
[370925628,1752162690479,-649.13,0.00020547,2]
[370925629,1752162690489,-151.0,0.00020547,2]
[370925630,1752162690499,-460.0,0.00020547,2]
[370925631,1752162690509,-550.53,0.00020547,2]
[370925632,1752162690524,-766.7,0.00020547,2]
[370925633,1752162690533,-807.62,0.00020547,2]
[370925634,1752162690543,-1023.37,0.00020547,2]
[370925635,1752162690554,-664.82,0.00020547,2]
[370925636,1752162690564,-1044.13,0.00020547,2]
[370925637,1752162690574,-475.04,0.00020547,2]
[370925638,1752162690584,-686.58,0.00020547,2]
[370925639,1752162690595,-1030.61,0.00020547,2]
[370925640,1752162690605,-663.6,0.00020547,2]
[370925641,1752162690615,-1610.8,0.00020547,2]
[370925642,1752162690624,-561.84,0.00020547,2]
[370925643,1752162690635,-460.0,0.00020547,2]
[370925644,1752162690645,-583.65,0.00020547,2]
[370925645,1752162690654,-460.0,0.00020547,2]
[370925646,1752162690664,-1595.83,0.00020547,2]
[370925647,1752162690674,-1755.28,0.00020547,2]
[370925648,1752162690684,-922.93,0.00020547,2]
[370925649,1752162690693,-460.0,0.00020547,2]
[370925650,1752162690703,-1888.3,0.00020547,2]
[370925651,1752162690712,-844.63,0.00020547,2]
[370925652,1752162690722,-460.0,0.00020547,2]
[370925653,1752162690732,-460.0,0.00020547,2]
[370925654,1752162690741,-498.33,0.00020547,2]
[370925655,1752162690751,-460.0,0.00020547,2]
[370925656,1752162690760,-986.34,0.00020547,2]
[370925657,1752162690770,-504.76,0.00020547,2]
[370925658,1752162690780,-4320.17,0.00020547,2]
[370925659,1752162690789,-1238.63,0.00020547,2]
[370925660,1752162690799,-767.53,0.00020547,2]
[370925661,1752162690809,-929.29,0.00020547,2]
[370925662,1752162690818,-2685.19,0.00020547,2]
[370925663,1752162690829,-1528.65,0.00020547,2]
[370925664,1752162690838,-460.0,0.00020547,2]
[370925665,1752162690849,-1923.74,0.00020547,2]
[370925666,1752162690859,-3695.34,0.00020547,2]
[370925667,1752162690869,-151.0,0.00020547,2]
[370925668,1752162690878,-1822.23,0.00020547,2]
[370925669,1752162690888,-778.08,0.00020547,2]
[370925670,1752162690898,-1070.77,0.00020547,2]
[370925671,1752162690907,-3280.59,0.00020547,2]
[370925672,1752162690917,-8918.9,0.00020547,2]
[370925673,1752162690927,-1268.3,0.00020547,2]
[370925674,1752162690936,-1253.41,0.00020547,2]
[370925675,1752162690946,-1692.79,0.00020547,2]
[370925676,1752162690956,-1598.82,0.00020547,2]
[370925677,1752162690966,-899.7,0.00020547,2]
[370925678,1752162690976,-460.0,0.00020547,2]
[370925679,1752162690986,-1065.81,0.00020547,2]
[370925680,1752162690996,-10696.12,0.00020547,2]
[370925681,1752162691007,-7685.87,0.00020547,2]
[370925682,1752162691017,-831.93,0.00020547,2]
[370925683,1752162691027,-1214.87,0.00020547,2]
[370925684,1752162691036,-4261.36,0.00020547,2]
[370925685,1752162691046,-2126.57,0.00020547,2]
[370925686,1752162691055,-1431.95,0.00020547,2]
[370925687,1752162691065,-1287.81,0.00020547,2]
[370925688,1752162691075,-2006.81,0.00020547,2]
[370925689,1752162691086,-460.0,0.00020547,2]
[370925690,1752162691096,-460.0,0.00020547,2]
[370925691,1752162691105,-2648.0,0.00020547,2]
[370925692,1752162691115,-646.02,0.00020547,2]
[370925693,1752162691125,-1722.2,0.00020547,2]
[370925694,1752162691134,-1034.94,0.00020547,2]
[370925695,1752162691144,-887.14,0.00020547,2]
[370925696,1752162691153,-899.21,0.00020547,2]
[370925697,1752162691163,-701.0,0.00020547,2]
[370925698,1752162691172,-779.63,0.00020547,2]
[370925699,1752162691182,-1373.31,0.00020547,2]
[370925700,1752162691192,-2211.86,0.00020547,2]
[370925701,1752162691202,-460.0,0.00020547,2]
[370925702,1752162691213,-460.0,0.00020547,2]
[370925703,1752162691222,-4844.48,0.00020547,2]
[370925704,1752162691233,-3834.37,0.00020547,2]
[370925705,1752162691242,-1431.82,0.00020547,2]
[370925706,1752162691252,-1027.66,0.00020547,2]
[370925707,1752162691261,-460.0,0.00020547,2]
[370925708,1752162691271,-1741.82,0.00020547,2]
[370925709,1752162691281,-1609.01,0.00020547,2]
[370925710,1752162691291,-460.0,0.00020547,2]
[370925711,1752162691300,-800.07,0.00020547,2]
[370925712,1752162691311,-6302.98,0.00020547,2]
[370925713,1752162691321,-1125.82,0.00020547,2]
[370925714,1752162691331,-1443.02,0.00020547,2]
[370925715,1752162691341,-3434.87,0.00020547,2]
[370925716,1752162691350,-7725.05,0.00020547,2]
[370925717,1752162691360,-679.33,0.00020547,2]
[370925718,1752162691369,-959.55,0.00020547,2]
[370925719,1752162691378,-652.1,0.00020547,2]
[370925720,1752162691387,-1360.15,0.00020547,2]
[370925721,1752162691397,-1499.79,0.00020547,2]
[370925722,1752162691407,-4655.1,0.00020547,2]
[370925723,1752162691417,-1529.41,0.00020547,2]
[370925724,1752162691427,-11428.77,0.00020547,2]
[370925725,1752162691437,-460.0,0.00020547,2]
[370925726,1752162691446,-3898.59,0.00020547,2]
[370925727,1752162691456,-637.19,0.00020547,2]
[370925728,1752162691467,-460.0,0.00020547,2]
[370925729,1752162691477,-1524.89,0.00020547,2]
[370925730,1752162691489,-559.0,0.00020582,2]
[370925731,1752162691499,-4326.73396823,0.00020624,3]
[370925732,1752162691509,-559.0,0.00020645,2]
[370925733,1752162691523,-168.0,0.00020734,2]
[370925734,1752162691533,-151.0,0.00020757,2]
[370925735,1752162691543,-9290.93255565,0.00020767,2]
[370925736,1752162691555,-460.0,0.00020776,2]
[370925737,1752162691566,-1606.0,0.000208,2]
[370925738,1752162691576,-1606.0,0.000208,2]
[370925739,1752162691587,-1606.0,0.000208,2]
[370925740,1752162691599,-1606.0,0.000208,2]
[370925741,1752162691610,-1606.0,0.000208,2]
[370925742,1752162691620,-1606.0,0.000208,2]
[370925743,1752162691629,-1606.0,0.000208,2]
[370925744,1752162691639,-1606.0,0.000208,2]
[370925745,1752162691648,-1606.0,0.000208,2]
[370925746,1752162691657,-1606.0,0.000208,2]
[370925747,1752162691667,-151.0,0.000208,2]
[370925748,1752162691676,-4800.0,0.00020808,2]
[370925749,1752162691686,-223.0315306,0.00020821,2]
[370925750,1752162691695,-460.0,0.00020821,2]
[370925751,1752162691704,-555.76756768,0.00020821,2]
[370925752,1752162691715,-151.0,0.00020821,2]
[370925753,1752162691724,-487.16,0.00020821,2]
[370925754,1752162691735,-770.11,0.00020821,2]
[370925755,1752162691776,-649.13,0.00020821,2]
[370925756,1752162691786,-156.998056,0.00020821,2]
[370925757,1752162691795,-156.998056,0.00020821,2]
[370925758,1752162691804,-460.0,0.00020821,2]
[370925759,1752162691814,-550.53,0.00020821,2]
[370925760,1752162691823,-766.7,0.00020821,2]
[370925761,1752162691833,-807.62,0.00020821,2]
[370925762,1752162691842,-1023.37,0.00020821,2]
[370925763,1752162691852,-664.82,0.00020821,2]
[370925764,1752162691862,-1044.13,0.00020821,2]
[370925765,1752162691871,-475.04,0.00020821,2]
[370925766,1752162691880,-686.58,0.00020821,2]
[370925767,1752162691890,-1030.61,0.00020821,2]
[370925768,1752162691899,-663.6,0.00020821,2]
[370925769,1752162691909,-1610.8,0.00020821,2]
[370925770,1752162691918,-561.84,0.00020821,2]
[370925771,1752162691927,-587.93198081,0.00020821,2]
[370925772,1752162691937,-583.65,0.00020821,2]
[370925773,1752162691946,-460.0,0.00020821,2]
[370925774,1752162691956,-1595.83,0.00020821,2]
[370925775,1752162691965,-1755.28,0.00020821,2]
[370925776,1752162691974,-922.93,0.00020821,2]
[370925777,1752162691984,-460.0,0.00020821,2]
[370925778,1752162691993,-1888.3,0.00020821,2]
[370925779,1752162692003,-844.63,0.00020821,2]
[370925780,1752162692013,-460.0,0.00020821,2]
[370925781,1752162692022,-460.0,0.00020821,2]
[370925782,1752162692032,-498.33,0.00020821,2]
[370925783,1752162692041,-460.0,0.00020821,2]
[370925784,1752162692051,-986.34,0.00020821,2]
[370925785,1752162692060,-504.76,0.00020821,2]
[370925786,1752162692070,-4320.17,0.00020821,2]
[370925787,1752162692079,-1238.63,0.00020821,2]
[370925788,1752162692089,-767.53,0.00020821,2]
[370925789,1752162692099,-929.29,0.00020821,2]
[370925790,1752162692108,-2685.19,0.00020821,2]
[370925791,1752162692117,-515.47192529,0.00020821,2]
[370925792,1752162692127,-1528.65,0.00020821,2]
[370925793,1752162692137,-1923.74,0.00020821,2]
[370925794,1752162692147,-3695.34,0.00020821,2]
[370925795,1752162692156,-1822.23,0.00020821,2]
[370925796,1752162692166,-778.08,0.00020821,2]
[370925797,1752162692176,-1070.77,0.00020821,2]
[370925798,1752162692186,-3280.59,0.00020821,2]
[370925799,1752162692196,-8918.9,0.00020821,2]
[370925800,1752162692206,-1268.3,0.00020821,2]
[370925801,1752162692216,-1253.41,0.00020821,2]
[370925802,1752162692225,-1692.79,0.00020821,2]
[370925803,1752162692236,-1598.82,0.00020821,2]
[370925804,1752162692245,-899.7,0.00020821,2]
[370925805,1752162692255,-460.0,0.00020821,2]
[370925806,1752162692265,-1065.81,0.00020821,2]
[370925807,1752162692275,-10696.12,0.00020821,2]
[370925808,1752162692285,-7685.87,0.00020821,2]
[370925809,1752162692295,-831.93,0.00020821,2]
[370925810,1752162692304,-1214.87,0.00020821,2]
[370925811,1752162692314,-4261.36,0.00020821,2]
[370925812,1752162692323,-2126.57,0.00020821,2]
[370925813,1752162692335,-1431.95,0.00020821,2]
[370925814,1752162692345,-1287.81,0.00020821,2]
[370925815,1752162692355,-707.35980224,0.00020821,2]
[370925816,1752162692376,-1299.45019776,0.00020821,2]
[370925817,1752162692385,-460.0,0.00020821,2]
[370925818,1752162692395,-460.0,0.00020821,2]
[370925819,1752162692406,-2648.0,0.00020821,2]
[370925820,1752162692416,-1722.2,0.00020821,2]
[370925821,1752162692426,-646.02,0.00020821,2]
[370925822,1752162692435,-1034.94,0.00020821,2]
[370925823,1752162692444,-887.14,0.00020821,2]
[370925824,1752162692453,-899.21,0.00020821,2]
[370925825,1752162692463,-701.0,0.00020821,2]
[370925826,1752162692473,-779.63,0.00020821,2]
[370925827,1752162692483,-1373.31,0.00020821,2]
[370925828,1752162692494,-2211.86,0.00020821,2]
[370925829,1752162692503,-460.0,0.00020821,2]
[370925830,1752162692513,-460.0,0.00020821,2]
[370925831,1752162692525,-4844.48,0.00020821,2]
[370925832,1752162692535,-3834.37,0.00020821,2]
[370925833,1752162692544,-1431.82,0.00020821,2]
[370925834,1752162692553,-1027.66,0.00020821,2]
[370925835,1752162692565,-460.0,0.00020821,2]
[370925836,1752162692575,-1741.82,0.00020821,2]
[370925837,1752162692584,-1609.01,0.00020821,2]
[370925838,1752162692595,-460.0,0.00020821,2]
[370925839,1752162692604,-800.07,0.00020821,2]
[370925840,1752162692614,-6302.98,0.00020821,2]
[370925841,1752162692623,-1125.82,0.00020821,2]
[370925842,1752162692632,-1443.02,0.00020821,2]
[370925843,1752162692641,-3434.87,0.00020821,2]
[370925844,1752162692650,-7725.05,0.00020821,2]
[370925845,1752162692659,-679.33,0.00020821,2]
[370925846,1752162692669,-959.55,0.00020821,2]
[370925847,1752162692678,-652.1,0.00020821,2]
[370925848,1752162692688,-1360.15,0.00020821,2]
[370925849,1752162692698,-1499.79,0.00020821,2]
[370925850,1752162692707,-4655.1,0.00020821,2]
[370925851,1752162692717,-1529.41,0.00020821,2]
[370925852,1752162692726,-11428.77,0.00020821,2]
[370925853,1752162692736,-460.0,0.00020821,2]
[370925854,1752162692746,-3898.59,0.00020821,2]
[370925855,1752162692755,-637.19,0.00020821,2]
[370925856,1752162692764,-460.0,0.00020821,2]
[370925857,1752162692774,-1524.89,0.00020821,2]
[370925858,1752162692783,-168.0,0.00020844,2]
[370925859,1752162692793,-4500.0,0.00020856,2]
[370925860,1752162692803,-2557.73656675,0.00020861,2]
[370925861,1752162692813,-168.0,0.0002089,2]
[370925862,1752162692823,-154.35742279,0.00020894,2]
[370925863,1752162692832,-153.0,0.00020932,2]
[370925864,1752162692842,-4326.73396823,0.00020934,4]
[370925865,1752162692852,-11728.2547438,0.00021,2]
[370925866,1752162692861,-5000.0,0.00021,5]
[370925867,1752162692872,-2000.0,0.00021,14]
[370925868,1752162692881,-2000.0,0.00021,14]
[370925869,1752162692892,-2000.0,0.00021,14]
[370925870,1752162692901,-2000.0,0.00021,14]
[370925871,1752162692911,-1385.0,0.00021,14]
[370925872,1752162692920,-301.6948613,0.00021,2]
[370925873,1752162692930,-3000.0,0.00021,2]
[370925874,1752162692939,-179.765645,0.00021,2]
[370925875,1752162692949,-151.0,0.00021,2]
[370925876,1752162692958,-151.0,0.00021,2]
[370925877,1752162692968,-153.090927,0.00021,2]
[370925878,1752162692978,-153.090927,0.00021,2]
[370925879,1752162692989,-3000.0,0.0002101,2]
[370925880,1752162692998,-3000.0,0.0002102,2]
[370925881,1752162693008,-3000.0,0.0002103,2]
[370925882,1752162693017,-151.0,0.00021038,2]
[370925883,1752162693027,-259.869869,0.00021038,2]
[370925884,1752162693038,-3000.0,0.0002104,2]
[370925885,1752162693047,-3000.0,0.0002105,2]
[370925886,1752162693056,-3000.0,0.0002106,2]
[370925887,1752162693066,-1500.0,0.00021068,2]
[370925888,1752162693076,-3000.0,0.0002107,2]
[370925889,1752162693086,-3000.0,0.0002108,2]
[370925890,1752162693095,-151.0,0.0002108,2]
[370925891,1752162693105,-3000.0,0.0002109,2]
[370925892,1752162693114,-460.0,0.00021095,2]
[370925893,1752162693124,-487.16,0.00021095,2]
[370925894,1752162693133,-151.0,0.00021095,2]
[370925895,1752162693143,-770.11,0.00021095,2]
[370925896,1752162693152,-649.13,0.00021095,2]
[370925897,1752162693162,-12500.0,0.00021095,7]
[370925898,1752162693171,-151.0,0.00021095,2]
[370925899,1752162693180,-460.0,0.00021095,2]
[370925900,1752162693190,-550.53,0.00021095,2]
[370925901,1752162693199,-766.7,0.00021095,2]
[370925902,1752162693208,-807.62,0.00021095,2]
[370925903,1752162693218,-1023.37,0.00021095,2]
[370925904,1752162693227,-664.82,0.00021095,2]
[370925905,1752162693237,-1044.13,0.00021095,2]
[370925906,1752162693247,-475.04,0.00021095,2]
[370925907,1752162693256,-686.58,0.00021095,2]
[370925908,1752162693266,-1030.61,0.00021095,2]
[370925909,1752162693275,-663.6,0.00021095,2]
[370925910,1752162693285,-151.0,0.00021095,2]
[370925911,1752162693294,-1610.8,0.00021095,2]
[370925912,1752162693302,-561.84,0.00021095,2]
[370925913,1752162693312,-583.65,0.00021095,2]
[370925914,1752162693322,-460.0,0.00021095,2]
[370925915,1752162693331,-1595.83,0.00021095,2]
[370925916,1752162693340,-1755.28,0.00021095,2]
[370925917,1752162693350,-922.93,0.00021095,2]
[370925918,1752162693360,-460.0,0.00021095,2]
[370925919,1752162693369,-1888.3,0.00021095,2]
[370925920,1752162693378,-844.63,0.00021095,2]
[370925921,1752162693387,-460.0,0.00021095,2]
[370925922,1752162693397,-440.4016656,0.00021095,2]
[370925923,1752162693407,-498.33,0.00021095,2]
[370925924,1752162693416,-460.0,0.00021095,2]
[370925925,1752162693426,-986.34,0.00021095,2]
[370925926,1752162693436,-504.76,0.00021095,2]
[370925927,1752162693445,-4320.17,0.00021095,2]
[370925928,1752162693455,-1238.63,0.00021095,2]
[370925929,1752162693465,-767.53,0.00021095,2]
[370925930,1752162693474,-12500.0,0.00021095,7]
[370925931,1752162693485,-929.29,0.00021095,2]
[370925932,1752162693494,-2685.19,0.00021095,2]
[370925933,1752162693503,-1528.65,0.00021095,2]
[370925934,1752162693513,-1923.74,0.00021095,2]
[370925935,1752162693527,-3695.34,0.00021095,2]
[370925936,1752162693536,-151.0,0.00021095,2]
[370925937,1752162693545,-1822.23,0.00021095,2]
[370925938,1752162693554,-778.08,0.00021095,2]
[370925939,1752162693566,-1070.77,0.00021095,2]
[370925940,1752162693575,-3280.59,0.00021095,2]
[370925941,1752162693586,-8918.9,0.00021095,2]
[370925942,1752162693595,-1268.3,0.00021095,2]
[370925943,1752162693605,-1253.41,0.00021095,2]
[370925944,1752162693614,-1692.79,0.00021095,2]
[370925945,1752162693624,-1598.82,0.00021095,2]
[370925946,1752162693633,-899.7,0.00021095,2]
[370925947,1752162693643,-173.31111347,0.00021095,2]
[370925948,1752162693653,-1065.81,0.00021095,2]
[370925949,1752162693663,-10696.12,0.00021095,2]
[370925950,1752162693674,-7685.87,0.00021095,2]
[370925951,1752162693683,-831.93,0.00021095,2]
[370925952,1752162693693,-1214.87,0.00021095,2]
[370925953,1752162693702,-4261.36,0.00021095,2]
[370925954,1752162693712,-2126.57,0.00021095,2]
[370925955,1752162693721,-1431.95,0.00021095,2]
[370925956,1752162693731,-1287.81,0.00021095,2]
[370925957,1752162693740,-2006.81,0.00021095,2]
[370925958,1752162693750,-460.0,0.00021095,2]
[370925959,1752162693760,-382.7246106,0.00021095,2]
[370925960,1752162693770,-2648.0,0.00021095,2]
[370925961,1752162693780,-1722.2,0.00021095,2]
[370925962,1752162693790,-646.02,0.00021095,2]
[370925963,1752162693800,-1034.94,0.00021095,2]
[370925964,1752162693810,-887.14,0.00021095,2]
[370925965,1752162693819,-899.21,0.00021095,2]
[370925966,1752162693829,-701.0,0.00021095,2]
[370925967,1752162693839,-779.63,0.00021095,2]
[370925968,1752162693849,-1373.31,0.00021095,2]
[370925969,1752162693859,-2211.86,0.00021095,2]
[370925970,1752162693869,-404.31364786,0.00021095,2]
[370925971,1752162693878,-460.0,0.00021095,2]
[370925972,1752162693888,-4844.48,0.00021095,2]
[370925973,1752162693898,-3834.37,0.00021095,2]
[370925974,1752162693908,-1431.82,0.00021095,2]
[370925975,1752162693918,-1741.82,0.00021095,2]
[370925976,1752162693927,-1027.66,0.00021095,2]
[370925977,1752162693936,-460.0,0.00021095,2]
[370925978,1752162693946,-1609.01,0.00021095,2]
[370925979,1752162693956,-460.0,0.00021095,2]
[370925980,1752162693966,-800.07,0.00021095,2]
[370925981,1752162693976,-6302.98,0.00021095,2]
[370925982,1752162693986,-1125.82,0.00021095,2]
[370925983,1752162693996,-1443.02,0.00021095,2]
[370925984,1752162694005,-3434.87,0.00021095,2]
[370925985,1752162694015,-7725.05,0.00021095,2]
[370925986,1752162694025,-679.33,0.00021095,2]
[370925987,1752162694034,-959.55,0.00021095,2]
[370925988,1752162694043,-652.1,0.00021095,2]
[370925989,1752162694053,-1360.15,0.00021095,2]
[370925990,1752162694063,-1499.79,0.00021095,2]
[370925991,1752162694072,-4655.1,0.00021095,2]
[370925992,1752162694083,-1529.41,0.00021095,2]
[370925993,1752162694092,-11428.77,0.00021095,2]
[370925994,1752162694102,-460.0,0.00021095,2]
[370925995,1752162694112,-3898.59,0.00021095,2]
[370925996,1752162694121,-637.19,0.00021095,2]
[370925997,1752162694131,-460.0,0.00021095,2]
[370925998,1752162694141,-1524.89,0.00021095,2]
[370925999,1752162694150,-3000.0,0.000211,2]
[370926000,1752162694160,-160.0,0.000211,7]
[370926001,1752162694170,-848.69501174,0.000211,7]
[370926002,1752162694180,-3000.0,0.0002111,2]
[370926003,1752162694189,-261.495596,0.0002111,2]
[370926004,1752162694199,-151.0,0.0002111,2]
[370926005,1752162694209,-168.0,0.00021114,2]
[370926006,1752162694219,-3000.0,0.0002112,2]
[370926007,1752162694229,-3000.0,0.0002113,2]
[370926008,1752162694238,-3000.0,0.0002114,2]
[370926009,1752162694247,-3000.0,0.0002115,2]
[370926010,1752162694257,-3000.0,0.0002116,2]
[370926011,1752162694267,-2861.75674915,0.0002117,2]
[370926012,1752162694531,-1786.76,0.00016438,2]
[370926013,1752162694542,-460.0,0.00016438,2]
[370926014,1752162694553,-460.0,0.00016438,2]
[370926015,1752162694563,-460.0,0.00016438,2]
[370926016,1752162694574,-460.0,0.00016438,2]
[370926017,1752162694584,-1786.76,0.00016712,2]
[370926018,1752162694594,-460.0,0.00016712,2]
[370926019,1752162694604,-460.0,0.00016712,2]
[370926020,1752162694614,-1786.76,0.00016986,2]
[370926021,1752162694623,-1786.76,0.0001726,2]
[370926022,1752162694633,-1786.76,0.00017534,2]
[370926023,1752162694641,-1786.76,0.00017808,2]
[370926024,1752162694651,-743.41,0.00018356,2]
[370926025,1752162694662,-743.41,0.0001863,2]
[370926026,1752162694672,-622.62,0.00018904,2]
[370926027,1752162694697,-460.0,0.00016438,2]
[370926028,1752162694707,-120.79,0.00018904,2]
[370926029,1752162694717,-511.95,0.00019178,2]
[370926030,1752162695037,-460.0,0.00016438,2]
[370926031,1752162695047,-460.0,0.00016438,2]
[370926032,1752162695057,-460.0,0.00016712,2]
[370926033,1752162695067,-460.0,0.00016712,2]
[370926034,1752162695077,-460.0,0.00016712,2]
[370926035,1752162695087,-460.0,0.00016712,2]
[370926036,1752162695097,-460.0,0.00016986,2]
[370926037,1752162695106,-460.0,0.00016986,2]
[370926038,1752162695116,-357.26408557,0.00016986,2]
[370926039,1752162695126,-460.0,0.00016986,2]
[370926040,1752162695135,-460.0,0.0001726,2]
[370926041,1752162695145,-460.0,0.0001726,2]
[370926042,1752162695155,-460.0,0.00017534,2]
[370926043,1752162695164,-233.73238705,0.00017808,2]
[370926044,1752162696921,-460.0,0.00016438,2]
[370926045,1752162696931,-460.0,0.00016438,2]
[370926046,1752162696940,-196.45975416,0.00016712,2]
[370926047,1752162696949,-376.28372235,0.00016986,2]
[370926048,1752162696959,-226.26761295,0.00017808,2]
[370926049,1752162696968,-1786.76,0.00018082,2]
[370926050,1752162696978,-1786.76,0.00018356,2]
[370926051,1752162696989,-1786.76,0.0001863,2]
[370926052,1752162696998,-653.475,0.00018684,2]
[370926053,1752162697007,-2200.0,0.00018684,2]
[370926054,1752162697016,-1786.76,0.00018904,2]
[370926055,1752162697025,-231.46,0.00019178,2]
[370926056,1752162697034,-1786.76,0.00019178,2]
[370926057,1752162697043,-743.41,0.00019452,2]
[370926058,1752162697052,-1786.76,0.00019452,2]
[370926059,1752162697061,-743.41,0.00019726,2]
[370926060,1752162697070,-1786.76,0.00019726,2]
[370926061,1752162697080,-160.0,0.00019995,2]
[370926062,1752162697089,-743.41,0.0002,2]
[370926063,1752162697098,-1786.76,0.0002,2]
[370926064,1752162697107,-743.41,0.00020273,2]
[370926065,1752162697115,-1786.76,0.00020273,2]
[370926066,1752162697123,-743.41,0.00020547,2]
[370926067,1752162697130,-1786.76,0.00020547,2]
[370926068,1752162697137,-743.41,0.00020821,2]
[370926069,1752162697145,-1786.76,0.00020821,2]
[370926070,1752162697152,-743.41,0.00021095,2]
[370926071,1752162697158,-1786.76,0.00021095,2]
[370926072,1752162697166,-138.24325085,0.0002117,2]
[370926073,1752162697174,-168.0,0.00021176,2]
[370926074,1752162697181,-509.00473889,0.00021179,2]
[370926075,1752162697194,-4490.99526111,0.00021179,2]
[370926076,1752162697201,-3000.0,0.0002118,2]
[370926077,1752162697208,-2190.11944136,0.0002119,2]
[370926078,1752162697218,-809.88055864,0.0002119,2]
[370926079,1752162697225,-125.81944106,0.00021196,2]
[370926080,1752162697236,-42.18055894,0.00021196,2]
[370926081,1752162697243,-3000.0,0.000212,2]
[370926082,1752162697250,-1055.92536297,0.0002121,2]
[370926083,1752162698781,162.898237,0.000254,30]
[370926084,1752162698822,7137.2542684,0.00015821,2]
[370926085,1752162700534,230.57077936,0.00026,30]
[370926086,1752162711565,160.0,0.00026,30]
[370926087,1752162736638,12591.423209,0.00026,30]
[370926088,1752162758398,450.35,0.00021081,30]
[370926089,1752162758805,900.7,0.00022997,30]
[370926090,1752162759201,1351.05,0.00024914,30]
[370926091,1752162825510,838.11655385,0.00026,30]
[370926092,1752162838481,435.61,0.00020538,30]
[370926093,1752162838900,871.22,0.00022405,30]
[370926094,1752162839334,1306.83,0.00024272,30]
[370926095,1752162918406,421.35,0.00024394,30]
[370926096,1752162957930,163.608737,0.00013699,2]
[370926098,1752163003075,419.06,0.00024037,30]
[370926099,1752163006718,230.57077936,0.00025,30]
[370926100,1752163018754,992.48548533,0.00016236,2]
[370926101,1752163021199,215.31329696,0.00025,30]
[370926102,1752163100099,416.77,0.00024021,30]
[370926103,1752163138465,838.11655385,0.00025,30]
[370926104,1752163190832,414.5,0.00023963,30]